fUST/lending_fUST_20250309
["ID","MTS","AMOUNT","RATE_DAILY","PERIOD"]
[355690575,1741462232878,-500.0,0.00048219,120]
[355690576,1741462232887,-500.0,0.00048219,120]
[355690577,1741462232897,-153.76,0.000483,45]
[355690578,1741462232907,-153.76,0.000483,45]
[355690579,1741462232916,-500.0,0.00048412,30]
[355690580,1741462232926,-168.78555311,0.00048412,2]
[355690581,1741462232935,-735.18,0.00048493,120]
[355690582,1741462232944,-3823.69,0.00048493,7]
[355690583,1741462232954,-500.0,0.00048493,120]
[355690584,1741462232964,-223.55,0.00048493,120]
[355690585,1741462232973,-140193.77840564,0.000485,120]
[355690925,1741462243425,-500.0,0.00047112,2]
[355690926,1741462243434,-500.0,0.00047112,2]
[355690927,1741462243443,-500.0,0.00047112,2]
[355690928,1741462243453,-500.0,0.00047112,2]
[355690929,1741462243462,-312.16577193,0.00047112,2]
[355690930,1741462243472,-500.0,0.00047397,120]
[355690931,1741462243481,-306.33422837,0.00047671,120]
[355690961,1741462247175,-193.66577163,0.00047671,120]
[355690962,1741462247185,-500.0,0.00047945,120]
[355690963,1741462247194,-359.91644214,0.00048219,120]
[355690964,1741462247208,-140.08355786,0.00048219,120]
[355690965,1741462247217,-500.0,0.00048473,10]
[355690966,1741462247227,-500.0,0.00048493,120]
[355690967,1741462247238,-7953.04482002,0.000485,120]
[355690968,1741462265601,1716.93846793,0.00043836,10]
[355690969,1741462265622,2019.43528142,0.00043836,10]
[355690970,1741462293401,162.463243,0.0003589,2]
[355690972,1741462598610,1000.0,0.0002501,2]
[355690973,1741462618823,747.67437243,0.0002501,2]
[355690974,1741463134127,-153.44,0.00038373,2]
[355690975,1741463134147,-250.0,0.00038714,2]
[355690976,1741463134169,-46.1430813,0.000389,8]
[355690977,1741463153086,-1203.50819789,0.000389,8]
[355690978,1741463153107,-250.0,0.00039153,2]
[355690979,1741463153128,-153.44,0.00039743,2]
[355690980,1741463153149,-157.0,0.00041,14]
[355690981,1741463153169,-153.44,0.00041113,30]
[355690982,1741463153190,-448.1522711,0.0004189,2]
[355690983,1741463214075,-206.90415627,0.0004189,2]
[355690984,1741463225087,-211.88677513,0.0003979,2]
[355690985,1741463225115,-154.82604573,0.0004189,2]
[355690986,1741463225138,-602.9224804,0.00041971,2]
[355690987,1741463225162,-153.44,0.00042483,30]
[355690988,1741463225186,-13.30249477,0.00042493,2]
[355690989,1741463236087,-1207.99623656,0.000399,8]
[355690990,1741463236111,-87.72660072,0.00042493,2]
[355690991,1741463236140,-79.66050351,0.00042493,2]
[355690992,1741463236162,-2114.1959479,0.00042595,2]
[355690993,1741463236184,-333.09069798,0.00042852,120]
[355690994,1741463236206,-179.55112219,0.00042952,28]
[355690995,1741463236229,-157.0,0.00043151,90]
[355690996,1741463236251,-550.0,0.00043835,5]
[355690997,1741463236273,-2537.72572392,0.00043836,10]
[355690998,1741463236296,-153.44,0.00043852,30]
[355690999,1741463236320,-382.006625,0.0004403,2]
[355691000,1741463236341,-193.0,0.00044081,2]
[355691001,1741463236363,-368.1308056,0.00044081,2]
[355691002,1741463242111,-1948.82919313,0.00044081,2]
[355691129,1741463347101,-22583.04000127,0.00044081,2]
[355691130,1741463347123,-162.463243,0.00044315,2]
[355691131,1741463347147,-220.00000001,0.000445,10]
[355691146,1741463357997,265.76763561,0.0004369,2]
[355691147,1741463365096,-85.97760639,0.0004369,2]
[355691178,1741463410498,2121.40520793,0.00043836,10]
[355691183,1741463431993,162.450583,0.0003589,2]
[355691429,1741463435073,200.0,0.000432,120]
[355691621,1741463438397,-216.53657701,0.00043836,10]
[355691623,1741463438410,-162.05821606,0.00043836,10]
[355691624,1741463438419,-162.450583,0.00044315,2]
[355691625,1741463438429,-333.09069795,0.00044614,120]
[355691627,1741463438438,-351.745242,0.00044626,2]
[355691628,1741463438448,-211.88677513,0.0004479,2]
[355691629,1741463438457,-1167.72969538,0.000449,10]
[355691630,1741463438467,-180.689599,0.00045042,2]
[355691631,1741463438478,-153.44,0.00045222,30]
[355691632,1741463438488,-351.745242,0.00045562,2]
[355691633,1741463438498,-333.09069795,0.00046376,120]
[355691634,1741463438512,-160.0,0.00046494,2]
[355691635,1741463438526,-351.745242,0.00046498,2]
[355691636,1741463438538,-1570.8878235,0.000465,19]
[355691637,1741463438547,-500.0,0.00046575,2]
[355691638,1741463438556,-500.0,0.00046575,2]
[355691639,1741463438567,-403.09372863,0.00046575,2]
[355691640,1741463438577,-500.0,0.00046575,120]
[355691641,1741463438588,-500.0,0.00046575,120]
[355691642,1741463438598,-500.0,0.00046575,120]
[355691643,1741463438607,-3938.01,0.00046575,7]
[355691644,1741463438617,-153.44,0.00046592,30]
[355691645,1741463438627,-500.0,0.000466,10]
[355691646,1741463438635,-500.0,0.00046849,120]
[355691647,1741463438647,-500.0,0.00046849,120]
[355691648,1741463438657,-500.0,0.00046849,120]
[355691649,1741463438667,-3938.01,0.00046849,7]
[355691650,1741463438676,-500.0,0.00047123,120]
[355691651,1741463438686,-500.0,0.00047123,120]
[355691652,1741463438695,-500.0,0.00047123,120]
[355691653,1741463438705,-3938.01,0.00047123,7]
[355691654,1741463438715,-198.17745636,0.00047297,2]
[355691655,1741463438725,-1021.42726543,0.00047335,28]
[355691656,1741463438735,-500.0,0.00047397,120]
[355691657,1741463438745,-500.0,0.00047397,120]
[355691658,1741463438755,-500.0,0.00047397,120]
[355691659,1741463438764,-3938.01,0.00047397,7]
[355691660,1741463438774,-351.745242,0.00047434,2]
[355691661,1741463438784,-500.0,0.00047553,30]
[355691662,1741463438795,-496.96073354,0.0004767,2]
[355691663,1741463438805,-500.0,0.00047671,120]
[355691664,1741463438815,-500.0,0.00047671,120]
[355691665,1741463438826,-500.0,0.00047671,120]
[355691666,1741463438835,-3938.01,0.00047671,7]
[355691667,1741463438845,-500.0,0.00047945,120]
[355691668,1741463438855,-500.0,0.00047945,120]
[355691669,1741463438864,-500.0,0.00047945,120]
[355691670,1741463438875,-3938.01,0.00047945,7]
[355691671,1741463438884,-153.44,0.00047962,30]
[355691672,1741463438895,-6899.66469434,0.00047999,2]
[355691673,1741463438904,-333.09069795,0.00048138,120]
[355691674,1741463438913,-500.0,0.00048219,120]
[355691675,1741463438923,-500.0,0.00048219,120]
[355691676,1741463438933,-500.0,0.00048219,120]
[355691677,1741463438943,-3938.01,0.00048219,7]
[355691678,1741463438953,-167.84703924,0.0004829,2]
[355691679,1741463438963,-153.77,0.000483,45]
[355691680,1741463438973,-153.77,0.000483,45]
[355691681,1741463438983,-1320.592126,0.000483,2]
[355691682,1741463438993,-500.0,0.00048339,92]
[355691683,1741463439003,-351.745242,0.00048371,2]
[355691684,1741463439013,-999.0,0.0004838,120]
[355691685,1741463439023,-56591.8454095,0.0004838,4]
[355691686,1741463439032,-25355.599427,0.0004839,44]
[355691687,1741463439042,-3620.7016205,0.0004839,4]
[355691688,1741463439626,-7697.6674614,0.0004839,4]
[355691689,1741463439636,-1420.44276937,0.0004839,2]
[355691690,1741463439649,-8636.0,0.0004839,2]
[355691742,1741463443692,-262.83782989,0.0004839,2]
[355691757,1741463446532,-4400.0,0.0004839,2]
[355691758,1741463446671,-57.88938053,0.0004839,2]
[355691772,1741463528141,599.9118177,0.00043137,2]
[355691781,1741464350114,-907.98115682,0.00038733,2]
[355691782,1741464443091,-162.450583,0.0003589,2]
[355691783,1741464443113,-393.81851281,0.00038733,2]
[355691788,1741464547077,-500.98901477,0.00038733,2]
[355691789,1741464547098,-1135.65020579,0.000389,8]
[355691790,1741464547119,-166.54534898,0.00039145,115]
[355691791,1741464547139,-639.6403479,0.00039165,2]
[355691792,1741464547158,-852.5464507,0.00039245,2]
[355691793,1741464547177,-146.62299636,0.0003932,2]
[355691794,1741464553124,-56.78130814,0.0003932,2]
[355691795,1741464553146,-207.3124955,0.00039352,2]
[355691796,1741464553169,-400.0,0.00039393,5]
[355691797,1741464553189,-1037.9293589,0.00039394,2]
[355691798,1741464553211,-191.81075621,0.00041037,2]
[355691799,1741464555109,-328.0,0.00042045,5]
[355691800,1741464555130,-5237.16527194,0.00042936,2]
[355691801,1741464558135,-9144.06225048,0.00042936,2]
[355691802,1741464558160,-180.53762048,0.00042952,28]
[355691803,1741464558183,-250.0,0.00043317,2]
[355691804,1741464561072,-351.30122109,0.00043445,2]
[355691805,1741464561093,-792.403192,0.00043545,2]
[355691806,1741464561115,-1165.64594586,0.00043582,28]
[355691807,1741464563073,-1303.70520134,0.00043582,28]
[355691808,1741464563093,-500.0,0.00043673,10]
[355691809,1741464563115,-83.79996681,0.00043675,30]
[355691810,1741464573089,-95.21003319,0.00043675,30]
[355691811,1741464573112,-166.07,0.00043677,2]
[355691812,1741464573133,-166.07,0.00043677,2]
[355691813,1741464573156,-500.0,0.00043682,31]
[355691814,1741464573180,-500.0,0.00043682,2]
[355691815,1741464573203,-500.0,0.00043682,2]
[355691816,1741464573227,-500.0,0.00043682,2]
[355691817,1741464573253,-500.0,0.00043682,31]
[355691818,1741464573277,-500.0,0.00043682,2]
[355691819,1741464573300,-500.0,0.00043682,2]
[355691820,1741464573322,-500.0,0.00043682,31]
[355691821,1741464573345,-500.0,0.00043682,2]
[355691822,1741464573372,-500.0,0.00043682,2]
[355691823,1741464573394,-435.54582886,0.00043682,31]
[355691824,1741464573418,-500.0,0.00043682,2]
[355691825,1741464573441,-595.36213109,0.00043682,2]
[355691826,1741464573463,-500.0,0.00043682,2]
[355691827,1741464573487,-500.0,0.00043682,2]
[355691828,1741464573511,-500.0,0.00043682,2]
[355691829,1741464573534,-500.0,0.00043682,2]
[355691830,1741464573557,-500.0,0.00043682,2]
[355691831,1741464573579,-24900.0,0.00043687,2]
[355691832,1741464573600,-479.52405305,0.000439,9]
[355691833,1741464585181,396.201596,0.00043121,2]
[355691870,1741464632615,-618.27114589,0.000439,9]
[355691873,1741464632625,-275.7127957,0.00043916,2]
[355691874,1741464632635,-2469.35114716,0.0004577,28]
[355691876,1741464632645,-162.450583,0.00046,2]
[355691878,1741464632655,-191.81075621,0.00046037,2]
[355691880,1741464632664,-1570.8878235,0.000465,19]
[355691883,1741464632674,-500.0,0.00046575,120]
[355691885,1741464632684,-500.0,0.00046575,120]
[355691887,1741464632694,-500.0,0.00046575,120]
[355691889,1741464632703,-620.08,0.00046575,120]
[355691891,1741464632713,-500.0,0.00046575,120]
[355691893,1741464632722,-500.0,0.00046575,120]
[355691895,1741464632732,-500.0,0.00046575,120]
[355691897,1741464632741,-500.0,0.00046575,120]
[355691899,1741464632751,-500.0,0.00046575,120]
[355691901,1741464632760,-500.0,0.00046575,120]
[355691903,1741464632769,-2789.42,0.00046575,7]
[355691905,1741464632778,-458.88,0.00046822,9]
[355691907,1741464632788,-500.0,0.00046849,120]
[355691909,1741464632797,-500.0,0.00046849,120]
[355691916,1741464632923,-500.0,0.00046849,120]
[355691917,1741464632932,-500.0,0.00046849,120]
[355691918,1741464632942,-2789.42,0.00046849,7]
[355691919,1741464632951,-222.28294543,0.00047067,10]
[355691920,1741464632965,-277.71705457,0.00047067,10]
[355691921,1741464632975,-500.0,0.00047123,120]
[355691922,1741464632985,-500.0,0.00047123,120]
[355691923,1741464632994,-500.0,0.00047123,120]
[355691924,1741464633004,-500.0,0.00047123,120]
[355691925,1741464633014,-2789.42,0.00047123,7]
[355691926,1741464633023,-166.07,0.00047387,2]
[355691927,1741464633032,-500.0,0.00047397,120]
[355691928,1741464633044,-500.0,0.00047397,120]
[355691929,1741464633054,-500.0,0.00047397,120]
[355691930,1741464633063,-500.0,0.00047397,120]
[355691931,1741464633073,-2789.42,0.00047397,7]
[355691932,1741464633083,-166.07,0.00047661,2]
[355691933,1741464633092,-500.0,0.00047671,120]
[355691934,1741464633102,-299.03850405,0.00047671,120]
[355691980,1741464638828,-538.93149595,0.00046575,120]
[355691982,1741464638838,-500.0,0.00047671,120]
[355691984,1741464638847,-193.72978574,0.00047671,120]
[355691986,1741464638856,-1607.33871831,0.00047671,7]
[355692076,1741464640682,-1182.08128169,0.00047671,7]
[355692078,1741464640692,-500.0,0.00047945,120]
[355692080,1741464640706,-500.0,0.00047945,120]
[355692082,1741464640715,-2789.42,0.00047945,7]
[355692084,1741464640725,-166.07,0.00047949,2]
[355692086,1741464640735,-2469.35114716,0.00047959,28]
[355692088,1741464640744,-807.7069402,0.00048,120]
[355692090,1741464640753,-172.7847831,0.0004817,2]
[355692091,1741464640763,-629.67,0.00048182,30]
[355692093,1741464640772,-1233.7068045,0.000482,2]
[355692095,1741464640781,-166.07,0.00048209,2]
[355692096,1741464640790,-500.0,0.00048219,120]
[355692098,1741464640800,-500.0,0.00048219,120]
[355692100,1741464640809,-2789.42,0.00048219,7]
[355692102,1741464640819,-166.07,0.00048241,2]
[355692104,1741464640828,-172.78478307,0.00048247,2]
[355692106,1741464640837,-7960.50405222,0.00048251,4]
[355692108,1741464640846,-160.0,0.0004826,2]
[355692110,1741464640856,-500.0,0.00048261,30]
[355692112,1741464640866,-7960.50405222,0.0004827,4]
[355692114,1741464640875,-39802.5202611,0.0004827,4]
[355692116,1741464640884,-999.0,0.00048279,120]
[355692118,1741464640893,-31237.29776189,0.0004828,44]
[355692121,1741464640905,-875.258897,0.0004828,44]
[355692123,1741464640916,-772.79413623,0.0004828,44]
[355692125,1741464640927,-493.28256153,0.0004828,44]
[355692127,1741464640938,-506.06236576,0.0004828,44]
[355692162,1741464643920,-40860.21645322,0.0004828,44]
[355692163,1741464643930,-12677.7997135,0.0004828,44]
[355692164,1741464643943,-222000.0,0.0004828,2]
[355692165,1741464643955,-153.78,0.000483,45]
[355692166,1741464643970,-172.78478307,0.00048323,2]
[355692167,1741464643982,-500.0,0.00048361,94]
[355692168,1741464643995,-500.0,0.00048373,10]
[355692169,1741464644009,-251.12173944,0.00048378,120]
[355692170,1741464644020,-150.0,0.00048379,30]
[355692171,1741464644030,-1814.1481189,0.0004838,120]
[355692172,1741464644042,-7960.50405222,0.0004838,4]
[355692173,1741464644055,-55555.0,0.0004839,120]
[355692174,1741464644068,-3000.0,0.000484,2]
[355692175,1741464644079,-172.78478307,0.000484,2]
[355692176,1741464644090,-500.0,0.00048461,92]
[355692177,1741464644101,-500.0,0.00048473,10]
[355692178,1741464644112,-500.0,0.00048473,10]
[355692179,1741464644124,-585.34820817,0.00048473,10]
[355692180,1741464644136,-490.70201719,0.00048473,10]
[355692181,1741464644147,-500.0,0.00048473,10]
[355692182,1741464644158,-500.0,0.00048473,10]
[355692183,1741464644169,-500.0,0.00048473,10]
[355692184,1741464644180,-500.0,0.00048473,10]
[355692185,1741464644191,-7960.50405222,0.00048483,4]
[355692186,1741464644203,-151.0,0.0004849,120]
[355692187,1741464644215,-344.347921,0.0004849,120]
[355692188,1741464644227,-344.347921,0.0004849,120]
[355692189,1741464644238,-87565.5445744,0.0004849,4]
[355692190,1741464644249,-518.860443,0.0004849,120]
[355692191,1741464644260,-518.860443,0.0004849,120]
[355692192,1741464644271,-500.0,0.00048493,120]
[355692193,1741464644282,-500.0,0.00048493,120]
[355692194,1741464644293,-2789.42,0.00048493,7]
[355692195,1741464644304,-969889.98644251,0.000485,120]
[355692196,1741464644315,-151.0,0.000485,30]
[355692197,1741464644327,-151.0,0.000485,120]
[355692198,1741464644339,-151.0,0.000485,120]
[355692199,1741464644351,-151.0,0.000485,120]
[355692200,1741464644362,-151.0,0.000485,120]
[355692201,1741464644373,-151.0,0.000485,120]
[355692202,1741464644385,-344.347921,0.000485,120]
[355692203,1741464644394,-344.347921,0.000485,120]
[355692204,1741464644404,-151.0,0.000485,120]
[355692205,1741464644414,-151.0,0.000485,120]
[355692206,1741464644425,-386.868074,0.000485,120]
[355692207,1741464644436,-386.868074,0.000485,120]
[355692208,1741464644446,-151.0,0.000485,120]
[355692209,1741464644457,-151.0,0.000485,120]
[355692210,1741464644468,-151.0,0.000485,120]
[355692211,1741464644479,-166.55366,0.000485,120]
[355692212,1741464644491,-184.456459,0.000485,120]
[355692213,1741464644502,-184.456459,0.000485,120]
[355692214,1741464644513,-151.0,0.000485,120]
[355692215,1741464644525,-214.70488,0.000485,120]
[355692216,1741464644536,-151.0,0.000485,120]
[355692217,1741464644548,-214.70488,0.000485,120]
[355692218,1741464644558,-151.0,0.000485,120]
[355692219,1741464644570,-154.147119,0.000485,120]
[355692220,1741464644581,-154.147119,0.000485,120]
[355692221,1741464644592,-151.0,0.000485,120]
[355692222,1741464644602,-151.0,0.000485,120]
[355692223,1741464644611,-151.0,0.000485,120]
[355692224,1741464644621,-151.0,0.000485,120]
[355692225,1741464644630,-518.860443,0.000485,120]
[355692226,1741464644639,-518.860443,0.000485,120]
[355692227,1741464644649,-2279.87385248,0.00048512,120]
[355692228,1741464644660,-2279.87385248,0.00048539,120]
[355692229,1741464644671,-500.0,0.00048561,94]
[355692230,1741464644682,-2279.87385248,0.00048588,120]
[355692231,1741464644694,-2279.87385248,0.0004859,120]
[355692232,1741464644706,-200.0,0.00048591,120]
[355692233,1741464644716,-500.0,0.00048661,93]
[355692234,1741464644727,-170.0,0.000487,120]
[355692235,1741464644737,-416.66666667,0.00048721,2]
[355692236,1741464644746,-512.4605666,0.00048722,4]
[355692237,1741464644756,-500.0,0.00048761,97]
[355692238,1741464644767,-500.0,0.00048767,120]
[355692239,1741464644778,-500.0,0.00048767,120]
[355692240,1741464644788,-2789.42,0.00048767,7]
[355692241,1741464644799,-500.0,0.00048861,92]
[355692242,1741464644810,-350.0,0.000489,120]
[355692243,1741464644821,-500.0,0.00048961,97]
[355692244,1741464644831,-3287.6088816,0.0004899,7]
[355692245,1741464644842,-2402.19245131,0.00049,120]
[355692246,1741464644853,-400.72496527,0.00049,120]
[355692247,1741464644863,-72755.61572965,0.00049,120]
[355692248,1741464644874,-151.0,0.00049,120]
[355692249,1741464644884,-151.0,0.00049,120]
[355692250,1741464644895,-151.0,0.00049,120]
[355692251,1741464644905,-151.0,0.00049,120]
[355692252,1741464644915,-184.456459,0.00049,120]
[355692253,1741464644925,-184.456459,0.00049,120]
[355692254,1741464644936,-151.0,0.00049,120]
[355692255,1741464644947,-214.70488,0.00049,120]
[355692256,1741464644957,-151.0,0.00049,120]
[355692257,1741464644968,-214.70488,0.00049,120]
[355692258,1741464644981,-229.064736,0.00049,120]
[355692259,1741464644992,-151.0,0.00049,120]
[355692260,1741464645003,-518.860443,0.00049,120]
[355692261,1741464645016,-518.860443,0.00049,120]
[355692262,1741464645026,-151.0,0.00049041,30]
[355692263,1741464645036,-151.0,0.00049041,120]
[355692264,1741464645047,-151.0,0.00049041,120]
[355692265,1741464645057,-151.0,0.00049041,120]
[355692266,1741464645068,-151.0,0.00049041,120]
[355692267,1741464645079,-151.0,0.00049041,120]
[355692268,1741464645090,-151.0,0.00049041,120]
[355692269,1741464645101,-344.347921,0.00049041,120]
[355692270,1741464645111,-344.347921,0.00049041,120]
[355692271,1741464645122,-151.0,0.00049041,120]
[355692272,1741464645133,-386.868074,0.00049041,120]
[355692273,1741464645143,-386.868074,0.00049041,120]
[355692274,1741464645154,-500.0,0.00049041,120]
[355692275,1741464645164,-154.147119,0.00049041,120]
[355692276,1741464645174,-500.0,0.00049041,120]
[355692277,1741464645187,-154.147119,0.00049041,120]
[355692278,1741464645200,-151.0,0.00049041,120]
[355692279,1741464645211,-151.0,0.00049041,120]
[355692280,1741464645222,-501.02423607,0.00049041,31]
[355692281,1741464645232,-501.02423607,0.00049041,31]
[355692282,1741464645243,-501.02423607,0.00049041,31]
[355692283,1741464645254,-501.02423607,0.00049041,31]
[355692284,1741464645391,-501.02423607,0.00049041,31]
[355692285,1741464645403,-501.02423607,0.00049041,31]
[355692286,1741464645413,-501.02423607,0.00049041,31]
[355692287,1741464645423,-501.02423607,0.00049041,31]
[355692288,1741464645432,-501.02423607,0.00049041,31]
[355692289,1741464645442,-501.02423607,0.00049041,31]
[355692290,1741464645451,-501.02423607,0.00049041,31]
[355692291,1741464645460,-501.02423607,0.00049041,31]
[355692292,1741464645470,-501.02423607,0.00049041,31]
[355692293,1741464645479,-501.02423607,0.00049041,31]
[355692294,1741464645488,-501.02423607,0.00049041,31]
[355692295,1741464645498,-501.02423607,0.00049041,31]
[355692296,1741464645508,-501.02423607,0.00049041,31]
[355692297,1741464645517,-501.02423607,0.00049041,31]
[355692298,1741464645527,-501.02423607,0.00049041,31]
[355692299,1741464645536,-501.02423607,0.00049041,31]
[355692300,1741464645546,-501.02423607,0.00049041,31]
[355692301,1741464645555,-501.02423607,0.00049041,31]
[355692302,1741464645566,-501.02423607,0.00049041,31]
[355692303,1741464645575,-501.02423607,0.00049041,31]
[355692304,1741464645585,-501.02423607,0.00049041,31]
[355692305,1741464645594,-501.02423607,0.00049041,31]
[355692306,1741464645603,-501.02423607,0.00049041,31]
[355692307,1741464645613,-501.02423607,0.00049041,31]
[355692308,1741464645622,-501.02423607,0.00049041,31]
[355692309,1741464645631,-501.02423607,0.00049041,31]
[355692310,1741464645641,-501.02423607,0.00049041,31]
[355692311,1741464645651,-501.02423607,0.00049041,31]
[355692312,1741464645661,-501.02423607,0.00049041,31]
[355692313,1741464645671,-501.02423607,0.00049041,31]
[355692314,1741464645680,-501.02423607,0.00049041,31]
[355692315,1741464645690,-501.02423607,0.00049041,31]
[355692316,1741464645700,-501.02423607,0.00049041,31]
[355692317,1741464645709,-501.02423607,0.00049041,31]
[355692318,1741464645719,-501.02423607,0.00049041,31]
[355692319,1741464645728,-501.02423607,0.00049041,31]
[355692320,1741464645738,-501.02423607,0.00049041,31]
[355692321,1741464645747,-501.02423607,0.00049041,31]
[355692322,1741464645756,-501.02423607,0.00049041,31]
[355692323,1741464645766,-501.02423607,0.00049041,31]
[355692324,1741464645775,-501.02423607,0.00049041,31]
[355692325,1741464645785,-501.02423607,0.00049041,31]
[355692326,1741464645794,-501.02423607,0.00049041,31]
[355692327,1741464645804,-501.02423607,0.00049041,31]
[355692328,1741464645813,-501.02423607,0.00049041,31]
[355692329,1741464645824,-501.02423607,0.00049041,31]
[355692330,1741464645833,-501.02423607,0.00049041,31]
[355692331,1741464645842,-501.02423607,0.00049041,31]
[355692332,1741464645851,-501.02423607,0.00049041,31]
[355692333,1741464645860,-501.02423607,0.00049041,31]
[355692334,1741464645869,-501.02423607,0.00049041,31]
[355692335,1741464645879,-501.02423607,0.00049041,31]
[355692336,1741464645888,-501.02423607,0.00049041,31]
[355692337,1741464645897,-501.02423607,0.00049041,31]
[355692338,1741464645907,-501.02423607,0.00049041,31]
[355692339,1741464645917,-500.0,0.00049041,31]
[355692340,1741464645926,-500.0,0.00049041,31]
[355692341,1741464645936,-500.0,0.00049041,31]
[355692342,1741464645945,-500.0,0.00049041,31]
[355692343,1741464645955,-500.0,0.00049041,31]
[355692344,1741464645966,-500.0,0.00049041,31]
[355692345,1741464645977,-500.0,0.00049041,31]
[355692346,1741464645986,-500.0,0.00049041,31]
[355692347,1741464645996,-500.0,0.00049041,31]
[355692348,1741464646007,-500.0,0.00049041,31]
[355692349,1741464646016,-500.0,0.00049041,31]
[355692350,1741464646026,-500.0,0.00049041,31]
[355692351,1741464646035,-500.0,0.00049041,31]
[355692352,1741464646046,-500.0,0.00049041,31]
[355692353,1741464646055,-500.0,0.00049041,31]
[355692354,1741464646066,-331.34162374,0.00049041,31]
[355692355,1741464646075,-500.0,0.00049041,31]
[355692356,1741464646084,-500.0,0.00049041,31]
[355692357,1741464646094,-500.0,0.00049041,31]
[355692358,1741464646103,-500.0,0.00049041,31]
[355692359,1741464646113,-500.0,0.00049041,31]
[355692360,1741464646122,-500.0,0.00049041,31]
[355692361,1741464646132,-500.0,0.00049041,31]
[355692362,1741464646142,-500.0,0.00049041,31]
[355692363,1741464646152,-500.0,0.00049041,31]
[355692364,1741464646162,-500.0,0.00049041,31]
[355692365,1741464646171,-500.0,0.00049041,31]
[355692366,1741464646181,-500.0,0.00049041,31]
[355692367,1741464646190,-500.0,0.00049041,31]
[355692368,1741464646200,-500.0,0.00049041,31]
[355692369,1741464646210,-499.99999999,0.00049041,31]
[355692370,1741464646220,-151.0,0.00049041,120]
[355692371,1741464646229,-2789.42,0.00049041,7]
[355692372,1741464646239,-500.0,0.00049061,95]
[355692373,1741464646250,-150.0,0.00049073,10]
[355692374,1741464646259,-999.0,0.00049101,120]
[355692375,1741464646268,-500.0,0.00049161,92]
[355692376,1741464646278,-203.85165619,0.00049163,30]
[355692378,1741464646287,-3253.21786605,0.00049163,30]
[355692380,1741464646296,-3253.21786605,0.00049163,30]
[355692381,1741464646305,-234.58,0.000492,2]
[355692382,1741464646315,-44954.68850415,0.0004925,120]
[355692383,1741464646325,-500.0,0.00049261,93]
[355692384,1741464646334,-185.23496587,0.0004929,23]
[355692385,1741464646344,-351.745242,0.00049307,2]
[355692386,1741464646353,-500.0,0.00049315,120]
[355692387,1741464646362,-500.0,0.00049315,120]
[355692388,1741464646372,-500.0,0.00049315,120]
[355692389,1741464646381,-500.0,0.00049315,120]
[355692390,1741464646391,-500.0,0.00049315,120]
[355692392,1741464646400,-500.0,0.00049315,120]
[355692394,1741464646409,-500.0,0.00049315,120]
[355692395,1741464646419,-500.0,0.00049315,120]
[355692396,1741464646428,-500.0,0.00049315,120]
[355692397,1741464646438,-500.0,0.00049315,120]
[355692398,1741464646447,-500.0,0.00049315,120]
[355692399,1741464646456,-500.0,0.00049315,120]
[355692400,1741464646465,-622.09097477,0.00049315,7]
[355692401,1741464646475,-500.0,0.00049315,120]
[355692402,1741464646484,-2789.42,0.00049315,7]
[355692403,1741464646493,-544.600908,0.00049315,7]
[355692404,1741464646502,-544.600908,0.00049315,7]
[355692405,1741464646512,-544.600908,0.00049315,7]
[355692406,1741464646521,-544.600908,0.00049315,7]
[355692407,1741464646530,-571.372276,0.00049315,120]